[Event "Romanian Championship 2024"]
[Site "Eforie Nord"]
[Date "2024.02.26"]
[Round "4.15"]
[White "Negrean, Andrei"]
[Black "Vilcu, Matei-Stefan"]
[Result "1/2-1/2"]
[ECO "E62"]
[WhiteElo "1990"]
[BlackElo "2176"]
[Annotator "RC"]
[PlyCount "94"]
[EventDate "2024.02.24"]
[EventType "swiss"]
[EventCountry "ROU"]
[SourceTitle "playchess.com"]
[Source "ChessBase"]
[SourceQuality "1"]
[TimeControl "40/5400+30:900+30"]

1. Nf3 {[%emt 0:00:04]} Nf6 {[%emt 0:00:09]} 2. c4 {[%emt 0:00:30]} g6 {[%emt 0:00:07]} 3. g3 {[%emt 0:01:12]} Bg7 {[%emt 0:00:03]} 4. Bg2 {[%emt 0:00:09]} O-O {[%emt 0:00:07]} 5. O-O {[%emt 0:00:10]} d6 {[%emt 0:00:04]} 6. d4 {[%emt 0:00:17]} Nc6 {[%emt 0:00:24]} 7. Nc3 {[%emt 0:00:41]} e5 {[%emt 0:01:08]} 8. dxe5 {[%emt 0:01:10]} dxe5 {[%emt 0:00:20]} 9. Qxd8 {[%emt 0:02:05]} Rxd8 {[%emt 0:00:15]} 10. Bg5 {[%emt 0:00:17]} h6 {[%emt 0:09:08]} 11. Bxf6 {[%emt 0:02:09]} Bxf6 {[%emt 0:00:05]} 12. Nd5 {[%emt 0:04:25]} Kg7 {[%emt 0:00:28]} 13. Nxc7 {[%emt 0:04:56]} Rb8 {[%emt 0:00:02]} 14. Nd5 {[%emt 0:12:31]} e4 {[%emt 0:00:33]} 15. Nd2 {[%emt 0:05:20]} e3 {[%emt 0:05:16]} 16. Nxf6 {[%emt 0:08:57]} Rxd2 {[%emt 0:00:55]} 17. fxe3 {[%emt 0:01:17]} Rxb2 {[%emt 0:30:25]} 18. Ne8+ {[%emt 0:12:03]} Kf8 {[%emt 0:24:36]} 19. Nd6 {[%emt 0:02:18]} Be6 {[%emt 0:00:03]} 20. Rab1 {[%emt 0:11:23]} Rxb1 {[%emt 0:01:32]} 21. Rxb1 {[%emt 0:00:58]} Ke7 {[%emt 0:05:25]} 22. Nxb7 {[%emt 0:11:21]} Ne5 {[%emt 0:07:15]} 23. c5 {[%emt 0:01:31]} Kd7 {[%emt 0:00:19]} 24. a4 {[%emt 0:06:31]} Kc7 {[%emt 0:01:07]} 25. a5 {[%emt 0:00:16]} Nc4 {[%emt 0:05:07]} 26. a6 {[%emt 0:02:48]} Nxe3 {[%emt 0:01:39]} 27. Bf3 {[%emt 0:01:43]} Bc4 {[%emt 0:01:52]} 28. Kf2 {[%emt 0:04:41]} Bxa6 {[%emt 0:02:14]} 29. Ra1 {[%emt 0:01:12]} Bxb7 {[%emt 0:00:50]} 30. Rxa7 {[%emt 0:00:20]} Nd1+ {[%emt 0:03:18]} 31. Ke1 {[%emt 0:00:32]} Nc3 {[%emt 0:00:14]} 32. c6 {[%emt 0:00:03]} Nb5 {[%emt 0:00:31]} 33. Rxb7+ {[%emt 0:00:13]} Rxb7 {[%emt 0:00:01]} 34. cxb7 {[%emt 0:00:01]} Nd6 {[%emt 0:00:11]} 35. Bd5 {[%emt 0:01:08]} f6 {[%emt 0:00:11]} 36. Kf2 {[%emt 0:00:41]} Nxb7 {[%emt 0:00:05]} 37. Be4 {[%emt 0:01:10]} f5 {[%emt 0:01:15]} 38. Bxb7 {[%emt 0:00:50]} Kxb7 {[%emt 0:00:04]} 39. Kf3 {[%emt 0:01:28]} Kc6 {[%emt 0:00:04]} 40. e4 fxe4+ {[%emt 0:00:00]} 41. Kxe4 {[%emt 0:00:34]} Kd6 {[%emt 0:01:16]} 42. g4 {[%emt 0:01:53]} Ke6 {[%emt 0:01:05]} 43. h4 {[%emt 0:00:10]} h5 {[%emt 0:01:42]} 44. g5 {[%emt 0:00:18]} Kd6 {[%emt 0:00:02]} 45. Kd4 {[%emt 0:00:05]} Ke6 {[%emt 0:00:03]} 46. Ke4 {[%emt 0:00:03]} Kd6 {[%emt 0:00:04]} 47. Kd4 {[%emt 0:00:04]} Ke6 {[%emt 0:00:05]} 1/2-1/2

[Event "Romanian Championship 2024"]
[Site "Eforie Nord"]
[Date "2024.02.26"]
[Round "4.16"]
[White "Nastore, Pavel-Alexandru"]
[Black "Nevednichy, Vladislav"]
[Result "0-1"]
[ECO "B67"]
[WhiteElo "2182"]
[BlackElo "2451"]
[Annotator "TA"]
[PlyCount "70"]
[EventDate "2024.02.24"]
[EventType "swiss"]
[EventCountry "ROU"]
[SourceTitle "playchess.com"]
[Source "ChessBase"]
[SourceQuality "1"]
[TimeControl "40/5400+30:900+30"]

{[%evp 21,70,0,8,17,8,0,0,-14,-24,-62,-62,-43,-59,-62,-55,-204,-190,-227,-217,-224,-234,-233,-168,-145,-40,-256,-171,-210,-199,-208,-220,-207,-191,-192,-179,-185,-116,-192,-209,-204,-144,-441,-437,-506,-518,-378,-346,-430,-423,-29984,-29985]} 1. e4 {[%emt 0:00:11]} c5 {[%emt 0:00:09]} 2. Nf3 {[%emt 0:00:11]} d6 {[%emt 0:00:04]} 3. d4 {[%emt 0:00:06]} cxd4 {[%emt 0:00:02]} 4. Nxd4 {[%emt 0:00:08]} Nf6 {[%emt 0:00:02]} 5. Nc3 {[%emt 0:00:09]} Nc6 {[%emt 0:00:21]} 6. Bg5 {[%emt 0:00:24]} e6 {[%emt 0:00:06]} 7. Qd2 {[%emt 0:00:33]} a6 {[%emt 0:00:07]} 8. O-O-O {[%emt 0:00:37]} Bd7 {[%emt 0:00:01]} 9. f4 {[%emt 0:00:29]} h6 {[%emt 0:02:11]} 10. Bxf6 {[%emt 0:12:17]} Qxf6 {[%emt 0:00:05]} 11. Nf3 {[%emt 0:00:27]} Qd8 {[%emt 0:00:35]} 12. Kb1 {[%emt 0:02:03]} Be7 {[%emt 0:03:08]} 13. Bd3 {[%emt 0:07:29]} Qa5 {[%emt 0:11:12]} 14. g4 {[%emt 0:03:38] The position is equal.} Bf6 {[%emt 0:04:22]} 15. e5 {[%emt 0:17:23]} dxe5 {[%emt 0:00:07]} 16. g5 {[%emt 0:04:06]} hxg5 {[%emt 0:04:37]} 17. fxg5 {[%emt 0:01:01] Black must now prevent Bxa6.} Be7 {[%emt 0:00:04]} 18. g6 {[%emt 0:01:35] [#]} (18. Bxa6 $1 $15 O-O-O 19. Bc4) 18... f6 $1 $19 {[%emt 0:00:23]} (18... f5 19. Bxf5 O-O-O 20. Be4 $16) 19. Bxa6 {[%emt 0:02:39]} O-O-O {[%emt 0:01:10]} 20. Bc4 {[%emt 0:01:23]} Bb4 {[%emt 0:00:56]} 21. h4 {[%emt 0:08:07]} e4 {[%emt 0:04:22]} 22. Nd4 {[%emt 0:01:05]} Qc5 {[%emt 0:09:38]} (22... Bxc3 $17 23. Qxc3 Qxc3 24. bxc3 Nxd4 25. cxd4 f5) 23. Bb3 $2 {[%emt 0:04:17]} (23. Nxe6 $2 Qxc4 24. Nxd8 Rxd8 $19) (23. Nxc6 $15 Qxc6 24. Bb3) 23... Qxd4 {[%emt 0:01:12]} 24. Qxd4 {[%emt 0:00:14]} Nxd4 {[%emt 0:00:03]} 25. Rxd4 {[%emt 0:00:05]} Bxc3 {[%emt 0:00:04]} 26. bxc3 {[%emt 0:00:13][%cal Oh4h5]} f5 {[%emt 0:01:02]} 27. h5 {[%emt 0:00:58]} Rde8 {[%emt 0:15:34]} 28. Kc1 {[%emt 0:15:30]} e3 {[%emt 0:06:59]} ({Black should try} 28... Kc7 $19 29. Rc4+ Bc6) 29. Rh3 {[%emt 0:06:05]} (29. Rdh4 $17 {was necessary.}) 29... e5 {[%emt 0:01:33]} 30. Rc4+ {[%emt 0:00:33]} Bc6 {[%emt 0:01:12] Strongly threatening ...f4.} 31. h6 $2 {[%emt 0:02:29][%mdl 8192] [#]} (31. Rc5 $17) 31... f4 $1 {[%emt 0:07:14]} ({And not} 31... gxh6 32. Rxe3 f4 33. Re1 $14) ({Stronger than} 31... Rxh6 32. Rxh6 f4 (32... gxh6 $2 {too greedy.} 33. g7 $18) 33. Rh3 $16) 32. h7 {[%emt 0:00:26]} Ref8 {[%emt 0:04:28]} 33. Rc5 {[%emt 0:08:00]} e4 {[%emt 0:02:13]} 34. Bd5 {[%emt 0:01:34]} f3 {[%emt 0:00:24] ...e2 would now be deadly.} 35. Kd1 {[%emt 0:01:01]} (35. Rh1 $19 e2 36. Kd2) 35... e2+ {[%emt 0:01:37] Weighted Error Value: White=0.74/Black=0.21 (precise) .  Loses game:     	White=2     	---        Mistake:       	White=3     	Black=2      Inaccurate:     	White=1     	Black=1      OK:         	White=6     	Black=8      Best:        	---       	Black=4      Strong:       	---       	Black=2} 0-1

[Event "Romanian Championship 2024"]
[Site "Eforie Nord"]
[Date "2024.02.26"]
[Round "4.17"]
[White "Secheres, Adrian-Simion"]
[Black "Maximov, Oleg"]
[Result "1-0"]
[ECO "A53"]
[WhiteElo "2371"]
[BlackElo "2186"]
[Annotator "TA"]
[PlyCount "103"]
[EventDate "2024.02.24"]
[EventType "swiss"]
[EventCountry "ROU"]
[SourceTitle "playchess.com"]
[Source "ChessBase"]
[SourceQuality "1"]
[TimeControl "40/5400+30:900+30"]

{[%evp 9,103,33,39,40,37,37,27,20,58,25,46,45,41,0,0,0,-3,-4,0,0,23,0,0,0,0,-12,0,0,15,0,13,-7,22,0,0,0,0,0,0,0,0,0,0,0,0,0,0,0,0,0,0,0,0,0,0,0,0,-141,-7,-14,-17,-23,0,0,0,0,220,222,305,302,306,307,344,206,414,407,518,387,376,371,368,322,439,423,592,578,501,563,535,547,547,556,563,563,1011,920]} 1. d4 {[%emt 0:00:06]} Nf6 {[%emt 0:00:05]} 2. c4 {[%emt 0:00:35]} d6 {[%emt 0:00:05]} 3. Nf3 {[%emt 0:00:45]} Bg4 {[%emt 0:00:12]} 4. h3 {[%emt 0:05:35]} Bxf3 {[%emt 0:00:47]} 5. exf3 {[%emt 0:00:59]} g6 {[%emt 0:00:26]} 6. Be2 {[%emt 0:03:23]} Bg7 {[%emt 0:00:15]} 7. O-O {[%emt 0:00:24]} O-O {[%emt 0:00:09]} 8. Nc3 {[%emt 0:03:10] Weiß hat minimalen Vorteil.} Nbd7 {[%emt 0:04:05]} 9. f4 {[%emt 0:03:26]} c6 {[%emt 0:05:18]} 10. Qc2 {[%emt 0:09:19]} d5 {[%emt 0:04:25]} 11. f5 {[%emt 0:04:20]} dxc4 {[%emt 0:01:49]} 12. fxg6 {[%emt 0:00:13]} hxg6 {[%emt 0:00:14]} 13. Bxc4 {[%emt 0:00:09]} Nb6 {[%emt 0:00:52]} 14. Bb3 {[%emt 0:00:13]} Nbd5 {[%emt 0:00:46]} 15. Rd1 {[%emt 0:11:36]} Qd6 {[%emt 0:02:18]} 16. Bg5 {[%emt 0:06:19][%cal Bc1g5,Bg5h4,Bh4g3,Bg3e5][%mdl 32]} e6 {[%emt 0:17:57]} 17. Re1 {[%emt 0:13:11]} Rfe8 {[%emt 0:03:15]} 18. Rad1 {[%emt 0:01:31]} Rac8 {[%emt 0:02:36]} 19. Bh4 {[%emt 0:06:05]} Qd7 {[%emt 0:01:39]} 20. Nb1 {[%emt 0:03:27]} Ne7 {[%emt 0:00:48]} 21. Bg3 {[%emt 0:02:10]} Nf5 {[%emt 0:00:18]} 22. Be5 {[%emt 0:00:04]} Nd5 {[%emt 0:00:35]} 23. Qe4 {[%emt 0:01:01]} Rcd8 {[%emt 0:06:03]} 24. Nd2 {[%emt 0:06:09]} Nf6 {[%emt 0:02:02] Hervorragende Reitkunst.} 25. Qb1 {[%emt 0:00:07]} Qe7 {[%emt 0:06:42]} ({Natürlich nicht} 25... Nxd4 $6 26. Ne4 Nxe4 27. Rxd4 Qxd4 28. Bxd4 $16) 26. Nf3 {[%emt 0:00:49][%cal Bd2f3,Bf3h2,Bh2g4,Bg4f6][%mdl 32]} Nd5 {[%emt 0:00:17]} 27. Qe4 {[%emt 0:01:25]} Nf6 {[%emt 0:00:46]} 28. Qe2 {[%emt 0:01:04]} Nd5 {[%emt 0:00:37]} 29. Qc2 {[%emt 0:03:35]} Nh4 {[%emt 0:00:24] Droht stark ...Nxf3+.} 30. Nh2 {[%emt 0:06:08]} Bxe5 {[%emt 0:12:40]} 31. dxe5 {[%emt 0:00:16]} Nf4 {[%emt 0:00:13]} 32. g3 {[%emt 0:04:33][%csl LRf4,LRh4]} Nxh3+ {[%emt 0:01:05]} 33. Kh1 {[%emt 0:00:30] [#]} (33. Kf1 $11 {war der einzige Weg, das Gleichgewicht zu halten.}) 33... Nf5 {[%emt 0:00:35]} ({Besser ist} 33... Kg7 $1 $17 {[%cal Oe7g5] Und jetzt ...Qg5! wäre schön.} 34. Rd6 (34. gxh4 $2 {ist das falsche Schlagen.} Qxh4 35. Rxd8 Rxd8 $19) 34... Nf5) 34. Kg2 $11 {[%emt 0:00:57]} Ng5 {[%emt 0:00:25]} 35. Ng4 {[%emt 0:00:30] Nf6+ ist eine echte Drohung.} Kg7 {[%emt 0:01:34]} (35... Nh7 {vereinfacht} 36. Qc1 Qb4 37. Bc4 Qc5) 36. Qc1 {[%emt 0:01:42] Droht Nf6 und aus.} Rxd1 {[%emt 0:15:33]} 37. Rxd1 {[%emt 0:00:03]} Ne4 {[%emt 0:04:57] Pariert Nf6. Jetzt gehts bergab für Schwarz.} (37... Nh7 $11 {und Schwarz steht sicher.}) 38. Qf4 $18 {[%emt 0:00:59][%mdl 1024] Weiss hat starke Kompensation.} Nc5 {[%emt 0:00:15]} 39. Nf6 {[%emt 0:00:52]} Rh8 {[%emt 0:00:14]} 40. Bc2 {[%emt 0:00:00]} a5 {[%emt 0:00:00]} 41. Qg5 {[%emt 0:07:06]} (41. g4 $142 Nh6 (41... Rh4 $2 42. Qg5 $18) 42. Rh1) 41... Kf8 $2 {[%emt 0:04:09]} (41... Qc7 {ist wohl besser.}) 42. g4 {[%emt 0:07:29]} Ng7 {[%emt 0:01:38][%cal Bf5g7,Bg7e8,Be8c7][%mdl 32]} 43. Rd4 {[%emt 0:00:50]} Ne8 {[%emt 0:02:37]} 44. a3 {[%emt 0:01:02]} a4 {[%emt 0:00:44]} 45. Bxa4 {[%emt 0:01:26] Aktives Gegenspiel!} Nc7 {[%emt 0:00:33] [#]} 46. b4 $1 {[%emt 0:00:50] Weiß steht klar auf Gewinn.} Nxa4 {[%emt 0:01:37]} (46... Nd5 47. bxc5) 47. Rd7 {[%emt 0:00:05] Weiss droht Nh7+ und Matt.} Qxd7 {[%emt 0:00:06]} 48. Nxd7+ {[%emt 0:00:06]} Ke8 {[%emt 0:00:03]} 49. Nf6+ {[%emt 0:00:38]} Kf8 {[%emt 0:00:09]} 50. Qd2 {[%emt 0:00:38] Verhindert Nc3.} Nd5 {[%emt 0:00:16]} 51. Nxd5 {[%emt 0:00:50]} exd5 {[%emt 0:00:04]} 52. Qc2 {[%emt 0:00:06] Gewichteter Fehlerwert: Weiß=0.16 (sehr präzise) /Schwarz=0.37.  Verlustzug:     	---       	Schwarz=1     Fehler:       	Weiß=2     	Schwarz=2     Ungenau:       	Weiß=2     	Schwarz=6     OK:         	Weiß=22    	Schwarz=18    Bester:       	Weiß=3     	Schwarz=3     Stark:        	Weiß=1     	---} 1-0

[Event "Romanian Championship 2024"]
[Site "Eforie Nord"]
[Date "2024.02.26"]
[Round "4.18"]
[White "Corbu, George-Alexandru"]
[Black "Ciorgovean, Iustin"]
[Result "1/2-1/2"]
[ECO "E93"]
[WhiteElo "1902"]
[BlackElo "2310"]
[Annotator "TA"]
[PlyCount "49"]
[EventDate "2024.02.24"]
[EventType "swiss"]
[EventCountry "ROU"]
[SourceTitle "playchess.com"]
[Source "ChessBase"]
[SourceQuality "1"]
[TimeControl "40/5400+30:900+30"]

{[%evp 18,49,53,39,41,52,84,104,83,61,114,135,154,97,129,127,99,65,92,84,100,106,117,0,0,0,55,41,50,53,108,111,104,67]} 1. d4 {[%emt 0:00:02]} Nf6 {[%emt 0:00:06]} 2. c4 {[%emt 0:00:06]} g6 {[%emt 0:00:02]} 3. Nc3 {[%emt 0:00:07]} Bg7 {[%emt 0:00:02]} 4. e4 {[%emt 0:00:08]} d6 {[%emt 0:00:01]} 5. h3 {[%emt 0:00:15]} Nbd7 {[%emt 0:00:04]} 6. Nf3 {[%emt 0:00:48]} e5 {[%emt 0:01:25]} 7. d5 {[%emt 0:03:55]} Nc5 {[%emt 0:01:05]} 8. Qc2 {[%emt 0:05:39]} a5 {[%emt 0:00:36]} 9. Be2 {[%emt 0:02:10]} O-O {[%emt 0:00:46]} 10. Be3 {[%emt 0:11:57]} Ne8 {[%emt 0:10:42]} 11. g4 {[%emt 0:12:45]} f5 {[%emt 0:03:59]} 12. exf5 {[%emt 0:03:09]} gxf5 {[%emt 0:01:14]} 13. O-O-O {[%emt 0:00:59]} b6 {[%emt 0:06:40]} (13... a4 $14) 14. Nd2 {[%emt 0:13:27] White is more active.} Bd7 {[%emt 0:03:24]} 15. f3 {[%emt 0:02:58]} ({White should play} 15. Rdg1 $1) 15... Qe7 {[%emt 0:03:39]} 16. Rdg1 {[%emt 0:06:33]} a4 {[%emt 0:03:10]} 17. Ndb1 {[%emt 0:08:03]} Kh8 {[%emt 0:02:06] [#]} 18. g5 $1 {[%emt 0:02:40]} c6 {[%emt 0:01:34]} 19. h4 {[%emt 0:02:17]} Nc7 {[%emt 0:10:12] [#]} 20. Qd2 {[%emt 0:09:45]} ({White should try} 20. h5 $1 $16 {[%cal Rh5h6] And now h6 would win.} h6 21. Qd2 (21. gxh6 Bf6 $16)) 20... cxd5 $11 {[%emt 0:01:26]} 21. cxd5 {[%emt 0:00:15]} f4 {[%emt 0:05:53]} (21... a3 $11 22. Nxa3 Na4) 22. Bxc5 $14 {[%emt 0:03:43]} bxc5 {[%emt 0:00:03]} 23. Ne4 $1 {[%emt 0:00:49]} Nb5 {[%emt 0:01:16]} (23... Rfb8 $14) 24. Bxb5 Bxb5 {[%emt 0:00:01]} 25. Nbc3 {[%emt 0:00:37] Weighted Error Value: White=0.15 (very precise) /Black=0.27 (precise) .  Mistake:       	White=2     	Black=3      Inaccurate:     	White=2     	Black=3      OK:         	White=3     	Black=2      Best:        	White=2     	---        Strong:       	White=2     	---} 1/2-1/2

[Event "Romanian Championship 2024"]
[Site "Eforie Nord"]
[Date "2024.02.26"]
[Round "4.19"]
[White "Daianu, Cristian-Clement"]
[Black "Melinte, Rares-Andrei"]
[Result "1/2-1/2"]
[ECO "C00"]
[WhiteElo "2201"]
[BlackElo "1989"]
[Annotator "RC"]
[PlyCount "96"]
[EventDate "2024.02.24"]
[EventType "swiss"]
[EventCountry "ROU"]
[SourceTitle "playchess.com"]
[Source "ChessBase"]
[SourceQuality "1"]
[TimeControl "40/5400+30:900+30"]

1. e4 {[%emt 0:05:01]} e6 {[%emt 0:00:06]} 2. Qe2 {[%emt 0:07:28]} b6 {[%emt 0:03:50]} 3. Nc3 {[%emt 0:01:35]} Bb7 {[%emt 0:00:27]} 4. g3 {[%emt 0:00:36]} Nf6 {[%emt 0:00:39]} 5. Bg2 {[%emt 0:00:13]} Be7 {[%emt 0:00:32]} 6. f4 {[%emt 0:01:09]} d5 {[%emt 0:02:57]} 7. e5 {[%emt 0:09:19]} Nfd7 {[%emt 0:00:22]} 8. d3 {[%emt 0:00:03]} c5 {[%emt 0:01:58]} 9. Nf3 {[%emt 0:00:51]} Nc6 {[%emt 0:01:22]} 10. O-O {[%emt 0:01:36]} O-O {[%emt 0:06:50]} 11. f5 {[%emt 0:01:50]} d4 {[%emt 0:02:55]} 12. fxe6 {[%emt 0:04:46]} fxe6 {[%emt 0:02:43]} 13. Nb5 {[%emt 0:17:25]} Qb8 {[%emt 0:25:54]} 14. Bf4 {[%emt 0:11:33]} a6 {[%emt 0:04:48]} 15. Nd6 {[%emt 0:01:41]} Bxd6 {[%emt 0:00:15]} 16. exd6 {[%emt 0:00:03]} e5 {[%emt 0:00:29]} 17. Ng5 {[%emt 0:24:55]} Qxd6 {[%emt 0:03:02]} 18. Qh5 {[%emt 0:00:39]} h6 {[%emt 0:14:18]} 19. Ne4 {[%emt 0:00:42]} Qe7 {[%emt 0:02:26]} 20. Bxh6 {[%emt 0:00:11]} gxh6 {[%emt 0:02:53]} 21. Qg6+ {[%emt 0:01:03]} Qg7 {[%emt 0:01:11]} 22. Qxg7+ {[%emt 0:05:37]} Kxg7 {[%emt 0:00:17]} 23. Nd6 {[%emt 0:00:04]} Rxf1+ {[%emt 0:01:41]} 24. Rxf1 {[%emt 0:00:08]} Rf8 {[%emt 0:00:25]} 25. Nxb7 {[%emt 0:03:50]} Rxf1+ {[%emt 0:00:17]} 26. Kxf1 {[%emt 0:00:28]} Nb4 {[%emt 0:00:11]} 27. Nd6 {[%emt 0:00:24]} Nxc2 {[%emt 0:01:06]} 28. Nf5+ {[%emt 0:00:10]} Kf6 {[%emt 0:05:07]} 29. Be4 {[%emt 0:01:07]} b5 {[%emt 0:09:34]} 30. Nxh6 {[%emt 0:00:27]} Ne3+ {[%emt 0:00:32]} 31. Ke2 {[%emt 0:00:02]} c4 {[%emt 0:01:05]} 32. Ng8+ {[%emt 0:00:58]} Kg5 {[%emt 0:03:12]} 33. Ne7 {[%emt 0:00:22]} Nc5 {[%emt 0:00:37]} 34. Nc6 {[%emt 0:00:20]} Kf6 {[%emt 0:01:33]} 35. h4 {[%emt 0:00:51]} Nf5 {[%emt 0:01:19]} 36. Bxf5 {[%emt 0:00:29]} Kxf5 {[%emt 0:00:04]} 37. dxc4 {[%emt 0:00:10]} bxc4 {[%emt 0:00:05]} 38. h5 {[%emt 0:00:19]} Nd3 {[%emt 0:01:17]} 39. b3 {[%emt 0:00:00]} cxb3 {[%emt 0:00:00]} 40. axb3 {[%emt 0:00:00]} Nc1+ {[%emt 0:00:00]} 41. Kd1 {[%emt 0:01:07]} Nxb3 {[%emt 0:00:50]} 42. g4+ {[%emt 0:00:12]} Kg5 {[%emt 0:00:27]} 43. Nxe5 {[%emt 0:00:12]} Nc5 {[%emt 0:02:21]} 44. Nf3+ {[%emt 0:00:36]} Kh6 {[%emt 0:00:42]} 45. Nxd4 {[%emt 0:01:05]} Ne4 {[%emt 0:00:26]} 46. Ke2 {[%emt 0:02:35]} Ng3+ {[%emt 0:00:10]} 47. Kf3 {[%emt 0:00:10]} Nxh5 {[%emt 0:00:07]} 48. gxh5 {[%emt 0:00:04]} Kxh5 {[%emt 0:00:06]} 1/2-1/2

[Event "Romanian Championship 2024"]
[Site "Eforie Nord"]
[Date "2024.02.26"]
[Round "4.20"]
[White "Craciun, Sasha-Matei"]
[Black "Antonica, Dragos-Andrei"]
[Result "1-0"]
[ECO "C18"]
[WhiteElo "2080"]
[BlackElo "2366"]
[Annotator "RC"]
[PlyCount "65"]
[EventDate "2024.02.24"]
[EventType "swiss"]
[EventCountry "ROU"]
[SourceTitle "playchess.com"]
[Source "ChessBase"]
[SourceQuality "1"]
[TimeControl "40/5400+30:900+30"]

1. e4 {[%emt 0:00:03]} e6 {[%emt 0:00:09]} 2. d4 {[%emt 0:00:05]} d5 {[%emt 0:00:03]} 3. Nc3 {[%emt 0:00:04]} Bb4 {[%emt 0:00:09]} 4. e5 {[%emt 1:32:18]} c5 {[%emt 0:00:23]} 5. a3 {[%emt 0:00:00]} Bxc3+ {[%emt 0:00:03]} 6. bxc3 {[%emt 0:00:00]} Ne7 {[%emt 0:00:16]} 7. Qg4 {[%emt 0:00:00]} cxd4 {[%emt 0:00:46]} 8. cxd4 {[%emt 0:00:00]} Qc7 {[%emt 0:00:16]} 9. Bd2 {[%emt 0:00:00]} Qxc2 {[%emt 0:08:48]} 10. Qxg7 {[%emt 0:00:00]} Rg8 {[%emt 0:01:19]} 11. Qh6 {[%emt 0:00:00]} Qb2 {[%emt 0:05:13]} 12. Rd1 {[%emt 0:00:00]} Qxd4 {[%emt 0:09:14]} 13. Nf3 {[%emt 0:00:00]} Qe4+ {[%emt 0:04:27]} 14. Be3 {[%emt 0:00:00]} Qg6 {[%emt 0:04:00]} 15. Qf4 {[%emt 0:00:00]} Nbc6 {[%emt 0:01:24]} 16. Bd3 {[%emt 0:00:00]} Qg7 {[%emt 0:06:50]} 17. h4 {[%emt 0:00:00]} Ng6 {[%emt 0:07:51]} 18. Bxg6 {[%emt 0:00:00]} fxg6 {[%emt 0:17:08]} 19. h5 {[%emt 0:00:00]} Rf8 {[%emt 0:18:31]} 20. Qh6 {[%emt 0:00:00]} Qxh6 {[%emt 0:03:09]} 21. Bxh6 {[%emt 0:00:00]} Rf5 {[%emt 0:01:57]} 22. hxg6 {[%emt 0:00:00]} hxg6 {[%emt 0:00:07]} 23. Bg7 {[%emt 0:00:00]} Rh5 {[%emt 0:02:37]} 24. Ke2 {[%emt 0:00:00]} Bd7 {[%emt 0:02:17]} 25. Bf6 {[%emt 0:00:00]} Ne7 {[%emt 0:02:21]} 26. g4 {[%emt 0:00:00]} Bb5+ {[%emt 0:02:30]} 27. Kd2 {[%emt 0:00:00]} Rxh1 {[%emt 0:00:10]} 28. Rxh1 {[%emt 0:00:00]} Ng8 {[%emt 0:00:46]} 29. Rh7 {[%emt 0:00:00]} Rc8 {[%emt 0:01:39]} 30. Ng5 {[%emt 0:00:00]} Rc6 {[%emt 0:00:36]} 31. Rxb7 {[%emt 0:00:00]} Rb6 {[%emt 0:00:12]} 32. Rxa7 {[%emt 0:00:00]} Nh6 {[%emt 0:00:48]} 33. Re7+ {[%emt 0:00:00]} 1-0

[Event "Romanian Championship 2024"]
[Site "Eforie Nord"]
[Date "2024.02.26"]
[Round "4.21"]
[White "Pisu, Robert-Daniel"]
[Black "Ghita, Vlad-Bogdan"]
[Result "1/2-1/2"]
[ECO "A20"]
[WhiteElo "2154"]
[BlackElo "1893"]
[Annotator "RC"]
[PlyCount "87"]
[EventDate "2024.02.24"]
[EventType "swiss"]
[EventCountry "ROU"]
[SourceTitle "playchess.com"]
[Source "ChessBase"]
[SourceQuality "1"]
[TimeControl "40/5400+30:900+30"]

1. Nf3 {[%emt 0:00:03]} d5 {[%emt 0:00:07]} 2. g3 {[%emt 0:00:07]} g6 {[%emt 0:00:04]} 3. c4 {[%emt 0:00:08]} dxc4 {[%emt 0:00:05]} 4. Bg2 {[%emt 0:02:07]} Bg7 {[%emt 0:01:08]} 5. Na3 {[%emt 0:01:12]} Nc6 {[%emt 0:00:09]} 6. Nxc4 {[%emt 0:02:25]} e5 {[%emt 0:00:06]} 7. d3 {[%emt 0:02:21]} Nge7 {[%emt 0:00:11]} 8. O-O {[%emt 0:02:10]} O-O {[%emt 0:00:29]} 9. Rb1 {[%emt 0:01:34]} a5 {[%emt 0:00:49]} 10. a3 {[%emt 0:14:12]} a4 {[%emt 0:02:53]} 11. b4 {[%emt 0:04:39]} axb3 {[%emt 0:00:23]} 12. Qxb3 {[%emt 0:00:06]} Be6 {[%emt 0:02:31]} 13. Qc2 {[%emt 0:19:33]} Qc8 {[%emt 0:01:20]} 14. e3 {[%emt 0:08:30]} Rd8 {[%emt 0:04:30]} 15. Bb2 {[%emt 0:01:44]} f6 {[%emt 0:00:27]} 16. Ncd2 {[%emt 0:13:06]} Qd7 {[%emt 0:02:08]} 17. d4 {[%emt 0:02:06]} exd4 {[%emt 0:00:38]} 18. Nxd4 {[%emt 0:01:56]} Bd5 {[%emt 0:04:03]} 19. Nxc6 {[%emt 0:06:57]} Qxc6 {[%emt 0:02:31]} 20. Qxc6 {[%emt 0:00:59]} Bxc6 {[%emt 0:01:06]} 21. Ne4 {[%emt 0:02:26]} Kf7 {[%emt 0:00:12]} 22. Rfc1 {[%emt 0:01:25]} h6 {[%emt 0:05:22]} 23. h4 {[%emt 0:01:15]} Bxe4 {[%emt 0:01:56]} 24. Bxe4 {[%emt 0:00:04]} c6 {[%emt 0:00:03]} 25. Bd4 {[%emt 0:02:04]} Rd7 {[%emt 0:00:12]} 26. Bc5 {[%emt 0:05:01]} f5 {[%emt 0:00:49]} 27. Bc2 {[%emt 0:00:23]} Nd5 {[%emt 0:03:34]} 28. h5 {[%emt 0:02:31]} Nc3 {[%emt 0:00:41]} 29. Bb3+ {[%emt 0:02:54]} Ke8 {[%emt 0:00:01]} 30. hxg6 {[%emt 0:01:32]} Nxb1 {[%emt 0:02:53]} 31. Bf7+ {[%emt 0:00:30]} Rxf7 {[%emt 0:04:26]} 32. gxf7+ {[%emt 0:00:00]} Kxf7 {[%emt 0:00:01]} 33. Rxb1 {[%emt 0:00:00]} b5 {[%emt 1:01:12]} 34. Bb4 {[%emt 0:00:56]} Ke6 {[%emt 0:00:00]} 35. Rc1 {[%emt 0:00:16]} Ra6 {[%emt 0:00:00]} 36. Rd1 {[%emt 0:00:25]} Bb2 {[%emt 0:00:00]} 37. Rd6+ {[%emt 0:00:16]} Ke5 {[%emt 0:00:00]} 38. Rxh6 {[%emt 0:00:26]} Kd5 {[%emt 0:02:30]} 39. Rd6+ {[%emt 0:01:05]} Kc4 {[%emt 0:00:00]} 40. Kg2 {[%emt 0:00:00]} Kb3 {[%emt 0:00:00]} 41. Rd3+ {[%emt 0:04:00]} Kc4 {[%emt 0:00:00]} 42. Rd6 {[%emt 0:01:37]} Kb3 {[%emt 0:00:00]} 43. Rd3+ {[%emt 0:03:07]} Kc4 {[%emt 0:00:00]} 44. Rd6 {[%emt 0:09:22]} 1/2-1/2